bitfinex/quotes_ETHUSD_20251017
["timestamp","ask_amount","ask_price","bid_price","bid_amount"]
[1760707920195,0.2729,3801.9,3800.1,0.25621509]
[1760707920390,0.6336,3802.5,3801.3,2.63064668]
[1760707920695,0.1093,3802.8,3801.4,0.02630609]
[1760707920696,0.04585435,3802.8,3801.4,0.02630609]
[1760707920991,0.04585435,3802.8,3800.7,2.63108216]
[1760707920992,1.728,3802.6,3800.4,2.63130196]
[1760707921195,0.04584692,3803.0,3802.3,2.62992]
[1760707921535,0.41257518,3803.1,3802.4,0.02629917]
[1760707921753,2.356859,3804.9,3802.6,2.62977962]
[1760707922036,0.2716,3805.0,3801.8,0.2299]
[1760707922037,0.41245609,3804.0,3802.7,0.4506]
[1760707922220,2.72766539,3804.3,3802.7,2.62968863]
[1760707922433,2.72766539,3804.3,3801.4,2.63060247]
[1760707922434,1.728,3803.6,3801.0,0.6805]
[1760707922641,0.6336,3802.7,3800.2,0.4506]
[1760707922928,0.6336,3802.7,3798.9,0.233]
[1760707922929,2.62991794,3802.4,3799.2,0.4506]
[1760707923094,0.6336,3801.9,3799.5,0.70991925]
[1760707923295,0.6336,3801.5,3800.1,0.1312]
[1760707923496,3.894835,3801.2,3798.3,0.02632756]
[1760707923728,2.3616,3800.1,3797.9,0.233]
[1760707923970,0.35485,3800.0,3798.1,0.02632895]
[1760707924130,0.1015,3800.0,3798.1,0.47692895]
[1760707924338,0.04587971,3800.1,3798.2,0.02632826]
[1760707924572,0.04587971,3800.1,3797.1,0.47693588]
[1760707924573,0.6336,3799.9,3797.1,0.47693588]
[1760707924737,5.346727,3799.9,3797.0,0.233]
[1760707925089,0.6336,3798.8,3796.3,0.6836]
[1760707925378,1.728,3798.5,3796.4,0.02634074]
[1760707925584,0.6336,3797.3,3794.8,0.233]
[1760707925785,0.6336,3797.3,3794.4,0.4506]
[1760707925786,0.1027,3798.4,3794.4,0.4506]
[1760707925787,2.3616,3796.9,3794.4,0.4506]
[1760707925965,0.1712,3796.8,3794.5,1.728]
[1760707926137,0.41323951,3796.3,3794.6,0.02635323]
[1760707926341,0.41323951,3796.3,3796.2,2.63421316]
[1760707926688,0.04590388,3798.2,3796.2,2.63421316]
[1760707926689,0.41317311,3797.9,3796.2,0.4506]
[1760707926852,0.1585,3797.8,3795.5,0.4506]
[1760707927186,0.6336,3797.2,3794.0,2.86871903]
[1760707927479,4.99533118,3796.9,3794.3,0.4506]
[1760707927718,0.6336,3796.6,3794.3,0.47695532]
[1760707927898,5.675507,3796.4,3794.3,2.63552338]
[1760707928099,5.675507,3796.4,3793.6,0.4506]
[1760707928100,0.6336,3795.8,3794.7,2.63525258]
[1760707928266,0.6336,3795.8,3794.4,0.02635462]
[1760707928267,3.26782514,3796.2,3794.4,2.63546278]
[1760707928612,0.67952348,3795.6,3793.4,0.4506]
[1760707928796,0.67952348,3795.6,3792.8,0.233]
[1760707928797,3.477767,3795.3,3792.8,0.6836]
[1760707929103,0.6336,3795.1,3792.9,0.47696505]
[1760707929305,0.41347304,3794.7,3792.9,0.4506]
[1760707929604,0.41347304,3794.7,3793.0,0.02636435]
[1760707929803,0.41347304,3794.7,3792.9,0.4506]
[1760707929804,0.6336,3794.6,3793.5,2.6360251]
[1760707930003,0.1088,3794.5,3793.6,2.63599246]
[1760707930166,0.45943169,3794.7,3793.1,0.71714746]
[1760707930376,0.04595865,3794.7,3793.3,0.4506]
[1760707930591,0.6336,3795.3,3793.4,0.02636157]
[1760707930794,0.6336,3794.9,3792.5,0.4506]
[1760707930978,2.3616,3794.7,3792.1,0.02637061]
[1760707931185,2.3616,3794.7,3791.8,0.4506]
[1760707931186,0.6336,3794.5,3791.8,0.4506]
[1760707931411,0.6336,3794.3,3792.1,0.47697061]
[1760707931678,0.6336,3794.1,3792.2,0.02636991]
[1760707931880,1.04709447,3794.1,3792.3,0.02636922]
[1760707932080,0.04594487,3794.0,3792.4,0.4506]
[1760707932365,0.41334861,3794.8,3792.7,2.3616]
[1760707932569,5.11586,3794.7,3789.1,0.14999999]
[1760707932792,5.11586,3794.7,3780.7,0.0469384]
[1760707932793,0.1582,3792.1,3790.2,0.4506]
[1760707933001,0.1582,3792.1,3790.3,0.02638313]
[1760707933304,0.1582,3792.1,3790.2,0.4506]
[1760707933305,0.6336,3792.0,3790.2,0.4506]
[1760707933615,0.6336,3791.6,3790.3,2.63831358]
[1760707933913,2.63774814,3791.2,3789.2,2.63901148]
[1760707934114,0.6336,3791.4,3789.0,0.233]
[1760707934276,0.04597963,3791.6,3789.3,0.47699009]
[1760707934471,0.04597963,3791.6,3789.7,1.728]
[1760707934681,0.04597963,3791.6,3790.3,1.728]
[1760707934889,0.04597963,3791.6,3790.5,1.728]
[1760707935240,0.41368797,3792.4,3790.6,0.02638104]
[1760707935505,0.04596826,3792.3,3792.2,2.63699171]
[1760707935689,12.92607049,3795.6,3792.2,0.4506]
[1760707935690,0.1137,3794.3,3792.2,0.4506]
[1760707935877,0.04595837,3793.9,3792.3,0.02636922]
[1760707936078,0.04595837,3793.9,3792.0,0.233]
[1760707936404,0.04595837,3793.9,3792.0,0.4624694]
[1760707936703,0.04595837,3793.9,3792.2,2.63699171]
[1760707936877,0.57085158,3794.0,3792.1,0.233]
[1760707937080,0.04595384,3793.5,3793.4,2.63615753]
[1760707937503,0.04595384,3793.5,3792.2,2.86999171]
[1760707937504,0.1686,3793.9,3792.4,1.728]
[1760707937704,0.6336,3793.8,3791.9,0.4506]
[1760707938014,0.6336,3793.8,3792.0,0.22049734]
[1760707938169,0.1678,3793.9,3792.1,0.233]
[1760707938372,0.0997,3794.4,3792.2,0.02636991]
[1760707938621,0.41351833,3794.1,3793.2,2.63626046]
[1760707938768,0.41351833,3794.1,3792.1,1.961]
[1760707939006,0.04594872,3794.0,3793.9,2.63581011]
[1760707939211,0.41346732,3794.7,3793.4,1.728]
[1760707939380,0.41346732,3794.7,3793.3,2.6361731]
[1760707939710,0.41346732,3794.7,3792.4,0.4506]
[1760707939711,0.6336,3794.5,3792.4,0.4506]
[1760707939917,5.893337,3794.4,3792.4,0.4506]
[1760707940214,1.728,3794.8,3791.9,0.026372]
[1760707940215,0.6336,3794.2,3792.2,1.728]
[1760707940515,0.41352749,3794.6,3792.3,0.47696922]
[1760707940695,0.14634908,3794.5,3792.3,0.4506]
[1760707940870,0.14634908,3794.5,3792.4,0.02636852]
[1760707940871,0.04594908,3794.5,3792.4,0.02636852]
[1760707941065,0.04594908,3794.5,3792.5,0.4506]
[1760707941270,0.04594908,3794.5,3793.4,2.63611294]
[1760707941509,0.04594908,3794.5,3793.4,0.52724119]
[1760707941714,0.04594908,3794.5,3794.1,2.63565544]
[1760707941921,0.04594908,3794.5,3793.1,1.9554]
[1760707942085,0.04594908,3794.5,3794.2,2.63555533]
[1760707942273,2.863373,3795.9,3794.3,0.02635532]
[1760707942478,0.41338181,3795.2,3793.4,2.63615753]
[1760707942675,0.04593687,3795.4,3795.3,2.63483782]
[1760707942922,0.04593687,3795.4,3795.1,2.63497668]
[1760707942923,0.41331106,3796.6,3795.2,0.2274]
[1760707943158,0.0459168,3796.6,3795.4,1.728]
[1760707943319,3.092671,3796.8,3795.4,1.728]
[1760707943520,0.21171764,3796.9,3795.5,0.02634698]
[1760707943726,0.04591764,3796.9,3795.7,2.63455803]
[1760707943954,0.1651,3796.8,3795.4,0.19554]
[1760707944168,0.1651,3796.8,3795.5,2.63469898]
[1760707944479,0.1651,3796.8,3794.7,0.2274]
[1760707944480,2.6343104,3796.1,3794.2,1.728]
[1760707944621,2.6343104,3796.1,3794.0,0.2274]
[1760707944622,0.6336,3796.4,3794.3,0.48475532]
[1760707944823,4.318989,3795.6,3793.3,0.2274]
[1760707945068,0.6336,3795.4,3794.0,2.63567839]
[1760707945221,0.45918824,3796.5,3793.7,0.02635949]
[1760707945222,0.6336,3795.7,3793.7,0.02635949]
[1760707945426,0.6336,3795.7,3794.5,2.63533107]
[1760707945667,0.6336,3795.7,3793.6,2.6359647]
[1760707945668,0.6336,3795.1,3793.6,2.6359647]
[1760707945966,2.033,3795.4,3793.7,2.63594907]
[1760707946168,0.04593947,3795.1,3793.8,2.97163414]
[1760707946337,0.04593947,3795.1,3793.8,0.76783491]
[1760707946569,0.04593947,3795.1,3793.8,0.4584]
[1760707946969,0.6336,3794.8,3793.9,0.001]
[1760707947170,2.3616,3794.8,3793.9,0.001]
[1760707947498,2.63430109,3796.1,3793.9,0.001]
[1760707947499,0.41344346,3794.6,3794.5,2.63539333]
[1760707947704,0.04593954,3795.5,3794.5,0.26353933]
[1760707947854,0.04593954,3795.5,3794.0,0.4584]
[1760707947855,0.04593954,3795.5,3794.1,2.8630167]
[1760707948055,0.04593954,3795.5,3794.1,0.2274]
[1760707948254,0.04593954,3795.5,3793.9,0.001]
[1760707948703,0.1564,3797.6,3795.4,0.2274]
[1760707948704,0.1075,3797.3,3795.4,0.2274]
[1760707948853,0.04592471,3797.1,3795.5,0.48474698]
[1760707949203,0.164,3796.9,3795.6,0.2440147]
[1760707949357,5.981237,3796.8,3794.5,2.66174726]
[1760707949701,5.981237,3796.8,3794.4,0.4584]
[1760707949702,0.6336,3796.2,3794.4,0.4584]
[1760707949851,0.002,3797.0,3794.6,0.48475323]
[1760707950253,2.033,3796.9,3794.7,0.6336]
[1760707950466,0.002,3797.0,3794.8,2.1864]
[1760707950700,0.04592031,3796.7,3796.1,2.63421428]
[1760707950906,0.002,3797.0,3796.2,0.2274]
[1760707951191,0.002,3797.0,3796.9,2.63372751]
[1760707951697,0.002,3797.0,3796.9,0.4584]
[1760707951901,0.002,3797.0,3796.2,0.2274]
[1760707952052,0.002,3797.0,3795.9,0.4584]
[1760707952403,0.002,3797.0,3795.2,1.728]
[1760707952404,0.002,3797.0,3795.2,0.4584]
[1760707952695,0.002,3797.0,3795.5,2.63469898]
[1760707952987,0.002,3797.0,3795.3,0.24498837]
[1760707952988,0.002,3797.0,3795.9,2.63436439]
[1760707953291,0.1768,3796.9,3795.3,0.21864]
[1760707953453,0.6356,3797.0,3795.4,0.4584]
[1760707953653,0.6336,3796.8,3795.4,1.728]
[1760707953954,0.6336,3796.8,3795.2,0.2274]
[1760707954160,0.6336,3796.8,3795.5,2.63463237]
[1760707954386,0.6336,3796.8,3795.1,0.1312]
[1760707954702,0.6336,3796.4,3794.3,0.2274]
[1760707954902,0.6336,3796.3,3794.4,0.4584]
[1760707955059,0.6336,3796.1,3794.4,2.1864]
[1760707955399,0.6336,3796.2,3794.4,0.4584]
[1760707955703,0.04592315,3796.5,3794.3,0.2274]
[1760707955704,0.04592315,3796.5,3794.5,0.48475393]
[1760707955995,0.04592341,3796.7,3794.7,1.728]
[1760707956199,0.04592341,3796.7,3795.0,2.63504611]
[1760707956357,0.6336,3796.6,3795.1,0.2274]
[1760707956552,0.6336,3796.6,3794.8,0.67967539]
[1760707956553,0.6336,3796.6,3794.8,0.4584]
[1760707956757,2.3616,3796.4,3794.4,1.728]
[1760707956955,2.3616,3796.4,3793.9,2.63678243]
[1760707956956,0.6336,3795.6,3793.9,0.001]
[1760707957211,2.63496494,3795.2,3793.9,0.001]
[1760707957364,0.6336,3795.1,3793.9,0.001]
[1760707957692,1.728,3795.2,3793.9,0.001]
[1760707957902,0.04593375,3795.4,3794.6,2.63531308]
[1760707958083,0.04593375,3795.4,3793.9,0.001]
[1760707958262,0.04593375,3795.4,3794.2,2.6356017]
[1760707958461,0.04593375,3795.4,3794.3,0.33214017]
[1760707958694,0.6336,3795.3,3793.9,0.001]
[1760707959200,0.04593375,3795.4,3794.8,2.63516413]
[1760707959497,0.0982,3797.9,3794.9,0.48475115]
[1760707959700,0.04592486,3796.8,3795.1,1.728]
[1760707959900,0.04592486,3796.8,3793.7,2.63589153]
[1760707959901,4.087078,3796.3,3794.3,2.63553224]
[1760707960073,0.6336,3796.1,3794.4,0.30939322]
[1760707960261,0.6336,3795.9,3793.9,1.729]
[1760707960466,1.77392486,3796.8,3794.1,1.728]
[1760707960796,1.728,3796.5,3794.1,2.63567117]
[1760707960967,0.6336,3795.7,3794.2,1.728]
[1760707961160,0.6336,3795.7,3793.9,0.001]
[1760707961359,0.45925651,3796.2,3793.9,0.001]
[1760707961360,2.63539969,3794.5,3793.9,0.001]
[1760707961603,1.728,3795.3,3793.9,0.001]
[1760707961801,0.1687,3794.8,3793.9,0.001]
[1760707962165,0.21464666,3794.8,3793.9,0.001]
[1760707962495,0.21464666,3794.8,3793.9,2.63674227]
[1760707962697,0.04594666,3794.8,3793.9,0.001]
[1760707962995,0.1551,3796.6,3794.7,0.2274]
[1760707963161,0.04593188,3796.4,3794.5,0.4584]
[1760707963361,0.04593188,3796.4,3794.6,0.4584]
[1760707963567,0.04593188,3796.4,3794.7,2.66155809]
[1760707963777,0.04593188,3796.4,3796.0,2.63431844]
[1760707963973,0.04593188,3796.4,3794.8,0.77039581]
[1760707964173,0.04593188,3796.4,3794.9,0.2274]
[1760707964375,0.04593188,3796.4,3795.0,0.4584]
[1760707964574,0.04593188,3796.4,3796.3,2.63414377]
[1760707964901,0.002,3797.0,3796.3,0.98523758]
[1760707965072,0.002,3797.0,3796.3,0.1312]
[1760707965398,0.002,3797.0,3795.6,0.6858]
[1760707965399,0.002,3795.8,3795.7,4.36256016]
[1760707965573,0.002,3795.8,3795.7,4.95216016]
[1760707965979,0.002,3795.8,3795.7,0.1312]
[1760707966176,0.002,3795.8,3794.6,0.2274]
[1760707966583,0.002,3795.8,3795.4,2.63471413]
[1760707966765,0.002,3795.8,3794.6,0.2274]
[1760707967291,0.002,3795.8,3794.7,0.33211811]
[1760707967493,0.002,3795.8,3793.7,0.4584]
[1760707967494,0.1673,3795.7,3793.7,0.4584]
[1760707967682,0.6336,3795.6,3794.1,2.86303614]
[1760707967996,0.7358,3795.6,3793.7,0.4584]
[1760707968177,2.3616,3795.1,3793.5,0.001]
[1760707968379,2.63535278,3794.6,3793.5,0.001]
[1760707968579,0.6336,3794.5,3793.5,0.001]
[1760707968787,0.1029,3794.5,3793.5,0.001]
[1760707969005,0.04595003,3794.4,3793.5,0.001]
[1760707969213,0.6336,3794.3,3793.5,0.001]
[1760707969415,2.63574064,3794.0,3793.5,0.001]
[1760707969710,6.040827,3794.0,3793.5,0.001]
[1760707970010,5.10024064,3794.0,3793.5,0.001]
[1760707970212,2.77513511,3794.0,3793.5,0.001]
[1760707970374,0.45948994,3794.0,3793.5,0.001]
[1760707970574,0.04595483,3794.0,3793.5,0.001]
[1760707970815,0.78245483,3794.0,3793.5,0.001]
[1760707970998,1.77395483,3794.0,3793.5,0.001]
[1760707971515,4.99761855,3793.6,3793.5,0.001]
[1760707971673,9.01169355,3793.6,3793.5,0.001]
[1760707972014,9.01169355,3793.6,3789.8,2.81143293]
[1760707972015,2.63739516,3791.7,3789.8,0.1728]
[1760707972216,1.728,3793.5,3790.1,2.66483733]
[1760707972217,0.7719,3791.8,3790.1,2.66483733]
[1760707972402,0.6336,3791.8,3790.2,0.28922373]
[1760707972603,0.6336,3792.1,3790.4,2.63822877]
[1760707972914,0.6336,3792.1,3789.4,0.4685]
[1760707972915,0.6336,3791.7,3789.4,0.4685]
[1760707973116,2.3616,3791.3,3789.8,2.63859745]
[1760707973318,0.6336,3791.3,3789.5,2.63887056]
[1760707973615,0.6336,3791.1,3789.9,0.4685]
[1760707973801,0.6336,3791.1,3790.1,2.63845249]
[1760707974014,0.6336,3791.1,3789.0,0.2269]
[1760707974180,0.6336,3791.1,3789.1,0.4685]
[1760707974379,2.260055,3790.8,3789.2,0.02639079]
[1760707974585,15.56287676,3792.5,3789.2,0.02639079]
[1760707974586,0.0982,3791.8,3789.2,2.63907948]
[1760707974877,0.0982,3791.8,3789.0,0.2269]
[1760707974878,0.6336,3790.7,3789.3,0.4685]
[1760707975103,0.6336,3790.8,3789.3,0.4685]
[1760707975490,0.6336,3790.4,3788.6,0.2274]
[1760707975690,4.891266,3790.6,3788.6,0.2274]
[1760707975904,1.15416496,3790.6,3789.4,2.63893717]
[1760707976104,0.6336,3790.3,3788.8,0.1312]
[1760707976305,0.6336,3790.3,3788.5,0.4685]
[1760707976505,0.6336,3790.3,3788.2,0.2269]
[1760707976716,0.1694,3790.9,3788.2,0.2269]
[1760707976717,0.6336,3789.9,3788.2,0.2269]
[1760707976914,0.6336,3789.9,3788.3,0.02639706]
[1760707977126,0.0997,3789.8,3787.9,0.001]
[1760707977327,2.3616,3789.6,3787.9,0.001]
[1760707977528,0.6336,3789.4,3787.9,0.001]
[1760707977929,0.6336,3789.1,3787.9,0.001]
[1760707978104,0.6336,3789.1,3788.0,2.63991552]
[1760707978292,0.6336,3788.8,3788.0,2.63991403]
[1760707978631,0.0997,3789.0,3787.9,0.001]
[1760707978632,0.04601278,3789.2,3788.1,0.6954]
[1760707979129,0.04601278,3789.2,3788.1,2.86672494]
[1760707979329,0.04601278,3789.2,3787.9,2.66737067]
[1760707979509,0.04601278,3789.2,3788.2,0.2269]
[1760707979904,0.0997,3791.0,3789.1,0.2269]
[1760707980105,0.04600285,3790.3,3789.2,0.65999079]
[1760707980367,0.41395963,3790.9,3789.3,0.4685]
[1760707980534,13.1981225,3792.1,3790.2,0.2269]
[1760707980709,0.04598651,3791.3,3790.6,2.63810274]
[1760707980907,0.04598651,3791.3,3789.2,0.4685]
[1760707981108,4.14455,3791.2,3789.2,0.4685]
[1760707981432,0.6336,3790.9,3789.9,2.63858455]
[1760707981599,0.8038,3790.9,3789.2,0.4685]
[1760707981933,0.6336,3790.6,3789.3,0.33345371]
[1760707982098,0.6336,3790.6,3789.3,0.001]
[1760707982294,5.370204,3790.3,3789.3,0.001]
[1760707982522,1.728,3789.7,3789.3,0.001]
[1760707982722,8.6448392,3789.4,3789.3,0.001]
[1760707983030,6.195634,3789.4,3789.3,0.001]
[1760707983241,2.57571211,3789.4,3789.3,0.001]
[1760707983396,2.40761211,3789.4,3789.3,0.001]
[1760707983795,1.77401211,3789.4,3789.3,0.001]
[1760707983997,0.04601211,3789.4,3789.3,0.001]
[1760707984224,0.78061211,3789.4,3789.3,0.001]
[1760707984539,0.67961211,3789.4,3789.3,0.001]
[1760707984933,8.93906031,3789.4,3789.3,0.001]
[1760707985131,2.40681211,3789.4,3789.3,0.001]
[1760707986550,0.04521211,3789.4,3789.3,2.64000984]
[1760707986755,0.04521211,3789.4,3789.3,0.001]
[1760707986955,3.795596,3790.7,3789.3,0.001]
[1760707987152,0.04600089,3789.8,3789.3,0.001]
[1760707987353,0.0982,3790.8,3789.7,2.63873129]
[1760707987555,3.235883,3790.8,3789.5,2.63884733]
[1760707987757,3.235883,3790.8,3789.3,0.001]
[1760707987758,0.04599731,3790.1,3789.3,0.001]
[1760707988062,0.54650399,3792.2,3791.0,2.6378227]
[1760707988063,13.3732225,3792.0,3791.0,2.6378227]
[1760707988223,0.04599254,3791.4,3791.3,2.63755432]
[1760707988725,0.04597622,3792.8,3791.9,2.63717141]
[1760707988926,0.04597622,3792.8,3791.6,2.637409]
[1760707989162,0.04597622,3792.8,3792.3,2.63692193]
[1760707989381,0.04597622,3792.8,3792.4,0.02636852]
[1760707989527,0.04597622,3792.8,3792.6,2.63668941]
[1760707989717,0.04597622,3792.8,3792.7,2.63664407]
[1760707989921,0.04597622,3792.8,3792.2,0.236]
[1760707990136,0.04597622,3792.8,3791.5,0.236]
[1760707990429,0.04597622,3792.8,3791.6,0.4611]
[1760707990730,0.04597622,3792.8,3792.3,2.63691979]
[1760707990950,0.04597622,3792.8,3791.8,0.4611]
[1760707991151,0.41362168,3792.7,3791.6,2.637409]
[1760707991347,0.04597622,3792.8,3791.7,0.4611]
[1760707992367,0.04597622,3792.8,3791.5,0.236]
[1760707992575,0.04597622,3792.8,3791.1,0.4611]
[1760707992576,0.6336,3792.7,3791.1,0.4611]
[1760707992787,0.04597622,3792.8,3790.7,0.236]
[1760707992788,0.6336,3792.3,3791.5,2.63746907]
[1760707993093,13.2001225,3793.1,3792.4,2.63682363]
[1760707993094,0.002,3793.1,3792.4,2.63682363]
[1760707993395,0.002,3793.1,3793.0,2.63643553]
[1760707993607,0.002,3793.1,3791.5,3.0985763]
[1760707993808,0.002,3793.1,3790.7,0.236]
[1760707993809,7.827529,3792.5,3790.7,0.6971]
[1760707994098,0.6336,3791.6,3790.0,0.236]
[1760707994395,0.6336,3791.2,3789.6,0.74868341]
[1760707994557,13.1981225,3790.7,3789.3,0.001]
[1760707994763,3.2725402,3789.4,3789.3,0.001]
[1760707994975,10.9002582,3789.4,3789.3,0.001]
[1760707995177,2.63949743,3788.6,3787.1,0.001]
[1760707995438,2.3616,3788.5,3787.1,0.001]
[1760707995607,0.6336,3788.3,3787.1,0.001]
[1760707995758,3.305846,3788.0,3787.1,0.001]
[1760707995957,1.728,3788.5,3787.2,0.236]
[1760707996158,2.3616,3788.9,3787.5,0.4611]
[1760707996461,0.04601704,3788.6,3788.0,2.63991552]
[1760707996661,0.04601704,3788.6,3788.1,0.50009155]
[1760707996892,0.04601704,3788.6,3787.5,0.4611]
[1760707997092,0.04601704,3788.6,3788.0,2.63988876]
[1760707997407,3.27351552,3788.0,3787.1,0.001]
[1760707997703,9.29028,3787.3,3787.1,0.001]
[1760707997906,1.728,3787.2,3787.1,0.001]
[1760707998058,0.1669,3787.9,3787.1,0.001]
[1760707998264,2.3616,3787.7,3787.1,0.001]
[1760707998494,0.6336,3787.7,3787.1,0.001]
[1760707998658,0.6336,3787.9,3787.1,0.001]
[1760707998863,0.6336,3787.5,3787.1,0.001]
[1760707999264,0.4142219,3787.6,3787.1,0.001]
[1760707999464,0.67962724,3787.5,3787.1,0.001]
[1760707999909,0.04602724,3787.5,3787.2,0.4611]
[1760708000060,0.04602724,3787.5,3787.4,2.64033373]
[1760708000264,0.6336,3788.7,3787.4,0.59789028]
[1760708000486,0.0460165,3788.2,3787.3,0.4611]
[1760708001194,0.0460165,3788.2,3787.1,0.237]
[1760708001195,5.405415,3788.1,3787.1,0.001]
[1760708001395,0.0460165,3788.2,3787.1,0.001]
[1760708001396,2.3616,3787.7,3787.1,0.001]
[1760708001595,0.6336,3787.5,3787.1,0.001]
[1760708001904,1.728,3787.4,3787.1,0.001]
[1760708002060,0.6336,3787.3,3787.1,0.001]
[1760708002266,15.12350017,3787.2,3787.1,0.001]
[1760708002564,6.044284,3787.2,3787.1,0.001]
[1760708002763,2.4613,3787.2,3787.1,0.001]
[1760708002973,2.3616,3787.2,3787.1,0.001]
[1760708003174,4.519697,3787.2,3787.1,0.001]
[1760708003372,2.3616,3787.2,3787.1,0.001]
[1760708003602,5.62515,3787.2,3787.1,0.001]
[1760708003769,5.62515,3787.2,3786.7,0.001]
[1760708003770,20.09951208,3786.8,3786.7,0.001]
[1760708003971,30.2473495,3786.8,3786.7,0.001]
[1760708004276,27.79278158,3786.8,3786.7,0.001]
[1760708004486,3.27463105,3786.4,3786.3,0.001]
[1760708004685,12.17515305,3786.4,3786.3,0.001]
[1760708004994,8.97089716,3786.4,3786.3,0.001]
[1760708005206,27.080637,3786.3,3784.0,0.236]
[1760708005391,27.080637,3786.3,3783.8,0.4449]
[1760708005392,18.37435124,3785.4,3783.8,0.4449]
[1760708005597,18.37435124,3785.4,3782.0,2.85979021]
[1760708005598,33.3679645,3785.4,3783.4,0.2157]
[1760708005768,2.64200792,3785.0,3783.4,0.6606]
[1760708005967,21.38140392,3785.0,3783.4,0.2157]
[1760708006182,21.86373398,3785.0,3783.0,0.2157]
[1760708006395,2.3616,3784.5,3783.6,3.08788345]
[1760708006596,2.3616,3784.5,3783.2,2.64324898]
[1760708006822,2.3616,3784.5,3783.0,0.6606]
[1760708007024,0.04606043,3784.2,3783.2,2.64326496]
[1760708007227,0.04606043,3784.2,3784.1,2.85833629]
[1760708007401,0.41454273,3785.4,3784.1,0.6606]
[1760708007739,0.04605576,3785.3,3785.0,2.85770122]
[1760708007942,3.408672,3786.8,3785.3,0.2157]
[1760708008236,0.04604543,3785.8,3785.7,2.6415194]
[1760708008399,13.1981225,3787.6,3785.7,0.4449]
[1760708008601,0.41421053,3786.8,3785.3,0.2157]
[1760708008931,0.6328,3786.6,3785.6,2.64158907]
[1760708009131,0.4143153,3786.6,3785.7,0.02641519]
[1760708009312,0.4143153,3786.6,3786.5,2.6409613]
[1760708009514,0.04603006,3787.2,3785.8,0.4449]
[1760708009708,6.47405008,3786.9,3785.6,2.6415393]
[1760708009944,1.8657,3786.8,3785.3,0.6606]
[1760708010153,1.728,3786.6,3785.4,2.64170411]
[1760708010352,13.138042,3786.7,3785.0,2.85769804]
[1760708010499,0.04603723,3786.9,3785.1,0.47131938]
[1760708010698,0.04603723,3786.9,3785.5,0.132]
[1760708010904,0.04603723,3786.9,3785.1,3.08682245]
[1760708010905,1.728,3786.7,3785.1,0.4449]
[1760708011099,2.112488,3787.5,3786.4,2.64098027]
[1760708011405,0.04603783,3786.7,3786.3,0.2157]
[1760708011714,2.64085151,3786.7,3785.3,2.64179853]
[1760708011915,0.6336,3786.7,3785.2,0.23886]
[1760708012235,0.6336,3786.7,3785.1,0.4449]
[1760708012438,0.6336,3786.4,3785.0,0.2157]
[1760708012640,0.6336,3786.0,3784.7,0.2157]
[1760708012946,0.6336,3786.7,3784.7,0.2157]
[1760708013107,0.04604509,3786.0,3785.1,2.64190954]
[1760708013308,0.6336,3785.9,3784.7,0.2157]
[1760708013509,0.6336,3785.9,3784.5,0.4449]
[1760708013510,3.27512206,3785.7,3784.1,0.2157]
[1760708013848,3.069746,3785.7,3784.6,2.64223675]
[1760708014014,0.6336,3785.8,3784.1,0.2157]
[1760708014236,8.506086,3785.3,3784.1,0.2157]
[1760708014437,0.04604938,3785.6,3784.2,0.4449]
[1760708014637,0.04604938,3785.6,3784.2,0.47132566]
[1760708014837,0.04604938,3785.6,3785.3,2.64178775]
[1760708015061,0.04604938,3785.6,3785.5,2.64165896]
[1760708015260,0.04604938,3785.6,3784.7,0.4449]
[1760708015669,0.04604938,3785.6,3784.1,0.6606]
[1760708015835,0.04604938,3785.6,3785.0,2.64195774]
[1760708016040,0.04604938,3785.6,3784.9,0.2157]
[1760708016240,0.04604938,3785.6,3785.5,2.64165896]
[1760708016444,0.04604938,3785.6,3785.5,3.08655896]
[1760708017035,7.323976,3787.2,3785.7,2.64147624]
[1760708017232,0.04604284,3786.4,3784.9,0.2157]
[1760708017467,13.1981225,3787.6,3786.3,0.2157]
[1760708017667,0.41434728,3787.7,3786.9,2.64063672]
[1760708018016,0.04603827,3787.5,3787.3,2.64040172]
[1760708018276,0.04603827,3787.5,3786.3,0.2157]
[1760708018277,13.1981225,3788.8,3787.2,2.64040462]
[1760708018477,0.04602104,3788.6,3787.3,0.4449]
[1760708018676,0.04602104,3788.6,3787.3,3.08524965]
[1760708018826,5.394564,3788.5,3787.2,2.64041038]
[1760708019029,2.490382,3788.3,3786.7,2.64082182]
[1760708019333,1.728,3788.3,3787.0,0.001]
[1760708019533,6.544435,3788.5,3787.0,0.001]
[1760708019775,2.74362931,3788.7,3787.0,0.001]
[1760708019776,0.002,3787.9,3787.0,0.001]
[1760708020461,0.002,3787.9,3787.2,2.64047317]
[1760708020665,0.002,3787.9,3787.1,0.4449]
[1760708020870,0.002,3787.9,3787.8,2.64005491]
[1760708021169,0.002,3787.9,3787.8,3.08495491]
[1760708021467,0.002,3787.9,3787.8,0.4449]
[1760708021663,0.002,3787.9,3787.8,3.08495491]
[1760708021875,0.002,3787.9,3787.8,5.1214504]
[1760708022032,0.002,3787.9,3787.8,5.27905094]
[1760708022233,0.002,3787.9,3787.8,5.8862504]
[1760708022553,0.002,3787.9,3787.8,5.1214504]
[1760708023246,0.002,3788.7,3787.9,2.3616]
[1760708023454,0.002,3788.7,3788.6,4.58319743]
[1760708023968,0.002,3788.7,3788.1,0.2157]
[1760708024156,0.002,3788.7,3788.6,2.63949743]
[1760708024358,0.04599812,3790.0,3789.5,2.63881482]
[1760708024672,0.04599812,3790.0,3788.4,0.02639636]
[1760708024673,0.04599812,3790.0,3789.6,0.4543]
[1760708024871,0.04599812,3790.0,3789.1,0.2299]
[1760708025572,0.04599812,3790.0,3789.2,2.63907948]
[1760708025890,0.1726,3789.9,3788.7,0.2299]
[1760708026176,0.04599812,3790.0,3788.7,0.2299]
[1760708026177,0.04599812,3790.0,3789.6,2.63879176]
[1760708026339,0.04599812,3790.0,3788.7,0.6842]